bitfinex/quotes_ETHUSD_20240721
["timestamp","ask_amount","ask_price","bid_price","bid_amount"]
[1721572686013,0.89541072,3515.0,3514.1,2.4295]
[1721572686151,0.89541072,3515.5,3514.0,3.05689759]
[1721572686493,0.89541072,3515.5,3514.2,2.4295]
[1721572686704,0.07004447,3515.4,3514.6,2.4295]
[1721572686916,0.07004447,3515.4,3514.6,5.33159922]
[1721572687205,0.07004447,3515.4,3514.8,5.2746]
[1721572687363,0.005,3516.0,3514.6,0.87458915]
[1721572687364,0.89541072,3515.8,3514.7,2.4295]
[1721572687562,1.19888096,3516.0,3515.2,5.27424]
[1721572687563,0.07005464,3515.3,3515.2,5.27424]
[1721572687875,0.005,3516.0,3515.2,5.27424]
[1721572688060,0.005,3516.0,3515.2,2.4295]
[1721572688265,0.07018077,3515.9,3515.2,2.4295]
[1721572688663,2.91440077,3515.9,3515.2,2.4295]
[1721572688863,0.66588715,3515.8,3515.2,2.4295]
[1721572689064,1.63150303,3515.8,3515.2,2.4295]
[1721572689250,0.73609231,3515.8,3515.2,2.4295]
[1721572689877,1.63150303,3515.8,3515.2,2.4295]
[1721572690055,0.73609231,3515.8,3515.2,2.4295]
[1721572690394,0.4480723,3515.7,3515.2,2.4295]
[1721572690690,0.07018693,3515.6,3515.2,2.4295]
[1721572690996,0.90041072,3516.0,3515.2,2.4295]
[1721572691605,0.07021043,3515.9,3515.2,2.4295]
[1721572691889,0.96562115,3515.9,3515.2,2.4295]
[1721572692056,0.07021043,3515.9,3515.2,2.4295]
[1721572692251,0.21645021,3515.8,3515.2,2.4295]
[1721572692660,0.07022956,3515.7,3515.2,2.4295]
[1721572693068,0.21645021,3515.8,3515.2,2.4295]
[1721572693270,0.0702199,3515.6,3515.2,2.4295]
[1721572693512,0.07022956,3515.7,3515.2,2.4295]
[1721572693673,0.07021023,3515.5,3515.2,2.4295]
[1721572693856,0.0702199,3515.6,3515.2,2.4295]
[1721572696395,0.21645021,3515.8,3515.2,2.4295]
[1721572696597,0.07021023,3515.5,3515.2,2.4295]
[1721572696814,0.21645021,3515.8,3515.2,2.4295]
[1721572696998,0.07020056,3515.4,3515.2,2.4295]
[1721572697334,0.07019089,3515.3,3515.2,2.4295]
[1721572697809,0.90041072,3516.0,3515.2,2.4295]
[1721572698006,0.77823617,3515.9,3515.2,2.4295]
[1721572698182,0.84848507,3515.9,3515.2,2.4295]
[1721572700999,1.75221059,3515.9,3515.2,2.4295]
[1721572702206,0.85679987,3515.9,3515.2,2.4295]
[1721572703845,0.0785637,3515.9,3515.2,2.4295]
[1721572705124,0.0785637,3515.9,3515.2,5.27426]
[1721572705328,0.0785637,3515.9,3515.2,2.4295]
[1721572705653,0.0785637,3515.9,3515.2,5.27428]
[1721572708332,0.0785637,3515.9,3515.2,2.4295]
[1721572710823,0.58024924,3515.9,3515.2,2.4295]
[1721572717120,0.0785637,3515.9,3515.2,2.4295]
[1721572719918,0.0785637,3515.9,3515.2,5.27427]
[1721572720120,0.0785637,3515.9,3515.4,2.3667]
[1721572720427,0.0785637,3515.9,3515.7,2.84437]
[1721572720630,0.0785637,3515.9,3515.8,5.211]
[1721572720826,0.0785637,3515.9,3515.8,6.016544]
[1721572721052,0.0083148,3515.9,3515.8,6.016544]
[1721572723653,0.0083148,3515.9,3515.8,3.172244]
[1721572723855,0.0083148,3515.9,3515.8,2.3667]
[1721572724226,0.07879768,3515.9,3515.8,2.3667]
[1721572725219,0.0083148,3515.9,3515.8,2.3667]
[1721572725822,0.0083148,3515.9,3515.8,5.211]
[1721572726039,0.0083148,3515.9,3515.8,6.016553]
[1721572728378,0.0083148,3515.9,3515.8,2.3667]
[1721572728535,0.0083148,3515.9,3515.8,5.211]
[1721572728735,0.0083148,3515.9,3515.8,2.3667]
[1721572728942,0.0083148,3515.9,3515.8,5.211]
[1721572730381,0.0083148,3515.9,3515.8,2.3667]
[1721572731542,0.07878135,3515.9,3515.8,2.3667]
[1721572733576,0.07878135,3515.9,3515.8,3.187808]
[1721572733771,0.0083148,3515.9,3515.8,3.187808]
[1721572733972,0.0083148,3515.9,3515.8,6.032108]
[1721572734285,0.0083148,3515.9,3515.8,8.876408]
[1721572736319,0.0083148,3515.9,3515.8,6.032108]
[1721572736672,0.0083148,3515.9,3515.8,2.3667]
[1721572737073,0.07852986,3515.9,3515.8,2.3667]
[1721572737493,0.0083148,3515.9,3515.8,2.3667]
[1721572740974,0.07854192,3515.9,3515.8,2.3667]
[1721572741594,0.0083148,3515.9,3515.8,2.3667]
[1721572741817,0.07854192,3515.9,3515.8,2.3667]
[1721572742437,0.07854192,3515.9,3515.8,6.032106]
[1721572742613,0.0083148,3515.9,3515.8,6.032106]
[1721572742777,0.0083148,3515.9,3515.8,8.876406]
[1721572744597,0.0083148,3515.9,3515.8,11.876406]
[1721572747026,0.0083148,3515.9,3515.8,12.426406]
[1721572748723,0.0083148,3515.9,3515.8,12.568406]
[1721572750987,0.0083148,3515.9,3515.8,15.412706]
[1721572752361,0.005,3516.0,3515.8,15.412706]
[1721572752362,0.005,3516.0,3515.9,5.68844]
[1721572752565,0.005,3516.0,3515.9,16.22917266]
[1721572752721,0.005,3516.0,3515.9,20.06212431]
[1721572752920,0.005,3516.0,3515.9,19.07339266]
[1721572753718,0.005,3516.4,3516.3,5.68778]
[1721572753923,0.005,3516.4,3516.3,12.53741893]
[1721572757225,0.005,3516.4,3516.3,15.38130893]
[1721572758261,0.005,3516.4,3516.3,18.38430893]
[1721572762953,0.005,3516.4,3516.3,15.54041893]
[1721572770672,0.005,3516.4,3516.3,9.63667]
[1721572771791,0.005,3516.4,3516.3,12.48056]
[1721572771988,0.005,3516.4,3516.3,9.63667]
[1721572772513,0.005,3516.4,3516.3,12.48056]
[1721572772873,0.005,3516.4,3516.3,9.63667]
[1721572776596,0.005,3516.4,3516.3,6.79278]
[1721572776924,0.005,3516.4,3516.3,13.31956]
[1721572777105,0.005,3516.4,3516.3,16.31756]
[1721572777426,1.4505,3517.7,3516.3,16.31756]
[1721572777427,0.158547,3518.2,3517.1,2.84322]
[1721572777576,0.158547,3518.2,3517.8,2.3033]
[1721572777782,0.2969772,3518.4,3517.8,2.36013176]
[1721572778077,0.2969772,3518.4,3517.9,1.37008418]
[1721572778304,0.01392237,3518.8,3517.9,4.42691872]
[1721572778824,0.01392237,3518.8,3518.4,2.84218]
[1721572779182,0.01392237,3518.8,3518.5,0.55]
[1721572779380,0.01392237,3518.8,3518.2,3.0]
[1721572779823,0.01392237,3518.8,3518.0,3.0]
[1721572780014,0.06616824,3518.7,3518.0,3.0]
[1721572780398,0.01392237,3518.8,3518.0,3.0]
[1721572780819,0.06622202,3518.7,3518.0,3.0]
[1721572782084,0.01392237,3518.8,3518.2,2.84235]
[1721572782287,0.01392237,3518.8,3518.3,0.639235]
[1721572782541,0.01392237,3518.8,3518.5,2.84211]
[1721572783038,0.01392237,3518.8,3518.3,3.639235]
[1721572783258,0.29699737,3519.7,3519.4,2.84134]
[1721572783526,0.29699737,3519.7,3518.9,10.28]
[1721572783743,2.84035,3520.7,3519.0,4.70684066]
[1721572784019,2.84035,3520.7,3519.1,3.0]
[1721572784232,1.2055,3521.0,3519.3,2.3033]
[1721572784404,1.2055,3521.0,3519.8,2.84106]
[1721572784405,0.06668463,3520.2,3519.8,2.84106]
[1721572784605,1.2055,3521.0,3519.8,2.84106]
[1721572784606,0.1035473,3520.3,3519.8,2.84106]
[1721572784833,0.1035473,3520.3,3519.9,0.284106]
[1721572785530,0.1035473,3520.3,3519.6,2.84122]
[1721572785703,0.1035473,3520.3,3519.7,0.55]
[1721572786105,0.1035473,3520.3,3519.7,2.84114]
[1721572786333,0.1035473,3520.3,3519.8,2.84106]
[1721572786631,0.1035473,3520.3,3520.2,2.4553]
[1721572786790,0.1035473,3520.3,3520.2,3.0456007]
[1721572786990,0.1035473,3520.3,3520.2,3.5956007]
[1721572787191,2.83971,3521.5,3520.2,3.5956007]
[1721572787192,2.83927,3522.1,3520.6,2.84034]
[1721572787423,2.83927,3522.1,3520.3,7.3367936]
[1721572787590,2.83947,3521.8,3520.4,3.55]
[1721572787807,0.32031066,3521.7,3520.5,1.39323943]
[1721572788111,2.83969,3521.5,3520.5,1.39323943]
[1721572788433,2.84017,3521.0,3520.3,7.28]
[1721572788608,2.84017,3521.0,3519.7,2.4553]
[1721572788609,2.84035,3520.7,3520.0,7.28]
[1721572788939,2.8397,3521.5,3520.0,7.28]
[1721572788940,0.06712727,3520.6,3520.0,7.28]
[1721572789224,0.32031066,3521.7,3520.0,7.28]
[1721572789225,2.84011,3521.0,3520.0,7.28]
[1721572789411,0.56801,3520.9,3520.0,7.28]
[1721572789619,0.06708377,3520.9,3520.0,7.28]
[1721572789839,2.84035,3520.7,3520.0,7.28]
[1721572790041,2.84042,3520.6,3520.0,7.28]
[1721572790343,2.84069,3520.3,3519.6,7.28]
[1721572791018,0.06688419,3520.2,3519.6,7.28]
[1721572791225,2.84069,3520.3,3519.2,19.4036]
[1721572791393,2.84069,3520.3,3519.6,0.142]
[1721572791394,2.8409,3520.1,3519.6,0.142]
[1721572791940,2.84091,3520.0,3519.6,0.142]
[1721572792126,2.84115,3519.7,3519.6,0.142]
[1721572792497,0.0667295,3519.7,3519.6,0.142]
[1721572792796,2.84112,3519.8,3519.6,0.142]
[1721572793030,2.90800199,3519.7,3519.6,0.142]
[1721572793830,0.06685199,3519.7,3519.6,0.142]
[1721572794147,5.74892602,3519.7,3519.6,0.142]
[1721572794342,0.64151862,3519.7,3519.6,0.142]
[1721572794501,0.06662602,3519.7,3519.6,0.142]
[1721572794704,2.84073,3520.3,3519.6,0.142]
[1721572794896,5.84076,3520.2,3519.6,0.142]
[1721572795097,3.06683685,3520.2,3519.6,0.142]
[1721572795321,5.90760685,3520.2,3519.6,0.142]
[1721572795535,0.87482869,3520.1,3519.6,0.142]
[1721572795841,0.0666889,3520.0,3519.6,0.142]
[1721572796271,0.0666889,3520.0,3517.5,2.4553]
[1721572796272,2.8411,3519.8,3517.5,2.4553]
[1721572796543,0.0666889,3520.0,3517.5,2.4553]
[1721572796544,2.84145,3519.4,3517.5,2.4553]
[1721572796711,2.84149,3519.3,3517.6,0.24553]
[1721572796912,2.90810076,3519.3,3517.6,0.24553]
[1721572797131,2.8418,3518.9,3517.6,3.08834]
[1721572797462,2.90849756,3518.8,3517.6,3.08835]
[1721572797661,0.06661756,3518.8,3517.7,3.397115]
[1721572797839,0.06661756,3518.8,3517.8,3.0]
[1721572798025,0.06661756,3518.8,3517.7,0.554365]
[1721572798210,2.84206,3518.6,3517.6,0.24553]
[1721572798415,2.84179,3519.0,3517.6,0.24553]
[1721572798416,2.84189,3518.8,3517.6,0.24553]
[1721572798646,0.06641007,3518.5,3517.6,3.08836]
[1721572798862,0.06658389,3518.7,3517.6,3.08836]
[1721572799150,0.06641282,3518.4,3517.6,0.24553]
[1721572799361,2.84227,3518.4,3517.5,2.4553]
[1721572799515,0.0665385,3518.3,3517.5,2.4553]
[1721572799714,2.84189,3518.8,3517.5,5.29822]
[1721572799917,2.84189,3518.8,3517.6,2.84282]
[1721572800215,0.06633248,3518.7,3518.0,2.84252]
[1721572800527,1.82507289,3520.3,3518.2,2.3797]
[1721572800528,2.84133,3519.5,3518.2,2.3797]
[1721572800722,0.06635681,3518.6,3518.2,5.3797]
[1721572800936,2.84123,3519.6,3518.3,2.84225]
[1721572801138,2.84132,3519.5,3518.3,2.84225]
[1721572801354,1.2055,3520.4,3518.4,0.822195]
[1721572801355,2.84081,3520.2,3518.4,0.822195]
[1721572801513,2.84153,3519.3,3518.2,5.3797]
[1721572801709,2.84153,3519.3,3518.2,2.3797]
[1721572801955,2.84163,3519.2,3518.2,2.3797]
[1721572802119,1.2055,3520.4,3518.2,2.3797]
[1721572802320,1.2055,3520.4,3518.3,0.05683537]
[1721572802321,0.06661459,3520.3,3518.3,0.05683537]
[1721572802553,2.79115,3519.7,3518.4,0.82789254]
[1721572802780,0.06649365,3519.6,3518.4,0.82789254]
[1721572803263,0.06649365,3519.6,3518.6,2.84203]
[1721572803475,0.06649365,3519.6,3518.4,0.82789254]
[1721572803643,2.84123,3519.6,3518.4,0.82789254]
[1721572803841,0.29694932,3519.7,3518.4,0.82789254]
[1721572803842,0.29694932,3519.7,3518.5,0.62075925]
[1721572804079,0.06663543,3519.5,3518.5,3.62075925]
[1721572804282,0.06656497,3519.6,3518.5,3.62075925]
[1721572804486,0.06653265,3519.4,3518.7,2.84194]
[1721572804644,0.06656641,3519.5,3518.8,0.05682875]
[1721572804845,0.29694932,3519.7,3518.9,0.28987688]
[1721572805086,0.06658933,3519.4,3519.0,0.05682503]
[1721572805381,2.84092,3520.0,3518.9,0.28987688]
[1721572805560,0.06666744,3519.3,3518.6,0.05682511]
[1721572805944,3.13782738,3520.0,3518.6,0.05682511]
[1721572805945,3.13782738,3520.0,3518.8,2.84187]
[1721572806352,0.06673888,3519.9,3518.8,2.84187]
[1721572806662,0.06673888,3519.9,3518.9,2.84179]
[1721572806849,0.06673888,3519.9,3519.0,2.89853505]
[1721572807048,0.06673888,3519.9,3519.0,3.18838856]
[1721572807348,0.06673888,3519.9,3519.1,5.77126]
[1721572807665,0.06673888,3519.9,3519.1,2.9297]
[1721572808188,0.06673888,3519.9,3519.1,2.3797]
[1721572808350,0.20873888,3519.9,3519.1,2.3797]
[1721572808545,0.20873888,3519.9,3518.7,7.28]
[1721572808546,0.54339351,3519.9,3518.7,7.28]
[1721572808783,2.84116,3519.7,3518.7,7.28]
[1721572809080,0.06669393,3519.8,3518.7,7.28]
[1721572809285,0.06666813,3519.6,3518.7,10.12194]
[1721572809446,0.0666908,3519.7,3518.7,10.12194]
[1721572809646,2.98301,3519.9,3518.8,1.61223993]
[1721572809892,0.06665053,3519.6,3518.8,1.61223993]
[1721572810047,2.84124,3519.6,3518.8,1.61223993]
[1721572810402,0.06664089,3519.5,3518.7,7.28]
[1721572810621,2.8416,3519.2,3518.7,7.28]
[1721572810753,1.3475,3519.9,3518.7,7.28]
[1721572811151,2.84141,3519.4,3518.7,7.28]
[1721572811449,0.0666438,3519.3,3518.7,8.008]
[1721572811658,0.0666438,3519.3,3518.7,7.28]
[1721572812005,4.18855,3519.9,3518.7,7.28]
[1721572812175,2.84123,3519.6,3518.7,7.28]
[1721572812361,0.06644322,3519.2,3518.7,7.28]
[1721572812555,0.142,3519.9,3518.8,2.84187]
[1721572812752,0.142,3519.9,3518.9,1.012187]
[1721572812957,0.06650613,3519.8,3518.9,3.391887]
[1721572813628,2.84135,3519.5,3518.7,7.28]
[1721572814081,0.06641994,3519.4,3518.7,7.28]
[1721572814654,2.84123,3519.6,3518.7,7.28]
[1721572814886,0.06626141,3519.3,3518.7,7.28]
[1721572815088,3.13814622,3519.7,3518.7,8.530181]
[1721572815405,2.84131,3519.5,3518.7,7.28]
[1721572815621,3.13814622,3519.7,3518.7,7.28]
[1721572815758,5.68269,3519.5,3518.7,7.28]
[1721572815966,2.90761756,3519.4,3518.7,7.28]
[1721572816173,2.90761756,3519.4,3518.4,2.3797]
[1721572816174,0.06622756,3519.4,3518.4,5.22189]
[1721572816355,0.29697622,3519.7,3518.6,2.84196]
[1721572816692,0.29697622,3519.7,3518.7,2.84193]
[1721572817053,0.06641609,3519.6,3518.7,2.84193]
[1721572817394,0.06641609,3519.6,3518.9,2.84176]
[1721572817975,0.29697622,3519.7,3518.6,2.84203]
[1721572817976,0.29697622,3519.7,3518.7,2.84192]
[1721572818185,0.29697622,3519.7,3518.7,1.0526199]
[1721572819057,0.29697622,3519.7,3519.1,2.3512]
[1721572819288,0.142,3519.9,3519.1,2.3512]
[1721572819490,0.06642705,3519.6,3519.1,2.3512]
[1721572819702,0.29701685,3519.7,3519.1,2.3512]
[1721572820058,0.06643035,3519.6,3519.1,2.3512]
[1721572820260,0.29701685,3519.7,3519.1,2.3512]
[1721572820797,0.06643035,3519.6,3519.1,2.3512]
[1721572821697,2.90766035,3519.6,3518.6,5.3512]
[1721572821908,0.32046772,3519.5,3518.6,5.3512]
[1721572822287,2.9078153,3519.4,3518.6,5.3512]
[1721572822491,2.9078153,3519.4,3518.4,3.0]
[1721572823093,2.84148,3519.3,3518.3,7.28]
[1721572823278,2.84163,3519.1,3518.3,7.28]
[1721572823489,2.84171,3519.0,3518.3,7.28]
[1721572823701,3.13261028,3518.9,3518.3,7.28]
[1721572823887,3.19896663,3518.9,3518.3,7.28]
[1721572824110,2.84189,3518.8,3518.3,7.28]
[1721572824308,2.84189,3518.8,3517.9,7.28]
[1721572824625,2.90830705,3518.7,3517.9,7.28]
[1721572825030,0.06633705,3518.7,3517.9,7.28]
[1721572825394,2.84206,3518.6,3517.9,7.28]
[1721572825594,0.06631666,3518.6,3517.9,7.28]
[1721572825795,2.84202,3518.7,3517.9,7.28]
[1721572825994,0.75503467,3518.6,3517.9,7.28]
[1721572827026,2.8422,3518.4,3517.9,7.28]
[1721572827478,0.06597701,3518.3,3517.9,7.28]
[1721572828125,0.06597701,3518.3,3517.4,7.28]
[1721572828288,3.530979,3518.6,3517.4,7.28]
[1721572828643,0.06604155,3518.2,3517.6,2.84283]
[1721572828934,0.06596506,3518.5,3517.6,2.84283]
[1721572829139,2.8419,3518.8,3517.6,2.84283]
[1721572829434,2.8419,3518.8,3517.6,2.84277]
[1721572829592,0.06593777,3518.7,3517.7,2.84275]
[1721572829796,0.86303656,3518.7,3517.7,2.84275]
[1721572830327,3.70500656,3518.7,3517.5,2.84289]
[1721572830624,0.86303656,3518.7,3517.5,2.84285]
[1721572830926,3.70499656,3518.7,3517.6,2.84282]
[1721572831098,2.84204,3518.6,3517.4,10.12298]
[1721572831432,2.90811728,3518.5,3517.4,10.12298]
[1721572831787,2.93742108,3518.5,3517.4,10.12298]
[1721572832021,0.09530108,3518.5,3517.5,2.84292]
[1721572832324,0.09530108,3518.5,3517.5,5.68578]
[1721572832499,0.09530108,3518.5,3517.6,1.531698]
[1721572833334,0.09530108,3518.5,3517.6,4.374518]
[1721572833933,0.09530108,3518.5,3517.6,1.531698]
[1721572834428,0.29713848,3518.7,3517.8,2.84267]
[1721572834727,0.09523431,3518.4,3517.6,4.374498]
[1721572834933,2.84188,3518.8,3517.6,1.531698]
[1721572835135,0.09520247,3518.3,3517.5,2.84289]
[1721572835306,2.84209,3518.6,3517.5,2.84289]
[1721572835507,0.09516032,3518.2,3517.5,2.84289]
[1721572835692,2.84213,3518.5,3517.4,10.12299]
[1721572835893,0.0951515,3518.1,3517.4,10.12299]
[1721572836134,2.84213,3518.5,3517.5,1.547419]
[1721572836433,0.09514246,3518.4,3517.4,10.12299]
[1721572836609,0.09514246,3518.4,3517.6,2.84282]
[1721572836789,3.33531453,3518.7,3517.4,10.123]
[1721572836994,3.33531453,3518.7,3517.5,2.84286]
[1721572837303,0.09516009,3518.6,3517.5,2.84286]
[1721572837507,0.4613199,3518.5,3517.5,2.84286]
[1721572837718,0.55642577,3518.5,3517.5,2.84286]
[1721572838227,3.39860577,3518.5,3517.4,7.28]
[1721572838435,2.8422,3518.4,3517.4,7.28]
[1721572838753,0.09510443,3518.4,3517.4,7.28]
[1721572838940,0.85711785,3518.4,3517.4,7.28]
[1721572839109,0.85711785,3518.4,3517.4,10.123]
[1721572840336,0.85711785,3518.4,3517.4,7.28]
[1721572840866,2.84237,3518.2,3517.4,7.28]
[1721572841024,4.04787,3518.2,3517.4,7.28]
[1721572841360,2.93747996,3518.1,3517.4,7.28]
[1721572841925,2.8426,3517.9,3517.4,7.28]
[1721572842433,0.09503114,3518.0,3517.4,7.28]
[1721572842434,2.93769351,3517.8,3517.4,7.28]
[1721572843062,2.84277,3517.7,3516.9,2.4603]
[1721572843273,0.09494282,3517.7,3516.7,7.28]
[1721572843561,2.84285,3517.6,3516.7,7.28]
[1721572843736,0.38240581,3517.5,3516.7,7.28]
[1721572844067,2.84307,3517.4,3516.7,7.28]
[1721572844234,2.93786458,3517.4,3516.7,7.28]
[1721572844964,0.09479458,3517.4,3516.7,7.28]
[1721572845374,2.84269,3517.8,3516.7,10.12351]
[1721572845656,2.84269,3517.8,3516.7,11.666264]
[1721572845865,3.34552364,3517.9,3516.7,8.822754]
[1721572846070,2.8429,3517.6,3516.7,7.28]
[1721572846281,2.84302,3517.4,3516.7,7.28]
[1721572846655,0.09471789,3517.3,3516.7,7.28]
[1721572847167,0.09471789,3517.3,3516.1,14.96765]
[1721572847168,0.29377379,3517.2,3516.1,2.4603]
[1721572847378,0.09471789,3517.3,3516.1,5.4603]
[1721572847580,1.2055,3517.4,3516.1,2.4603]
[1721572847783,0.09474363,3517.2,3516.1,2.4603]
[1721572847946,0.0947495,3517.3,3516.1,2.4603]
[1721572848148,2.93799388,3517.1,3516.1,5.30435]
[1721572848365,2.84332,3517.1,3516.1,6.419214]
[1721572848544,0.09466505,3517.0,3516.1,6.419214]
[1721572849562,2.93800505,3517.0,3516.1,3.575164]
[1721572849780,2.93800505,3517.0,3516.1,2.4603]
[1721572849781,2.84341,3516.9,3516.1,2.4603]
[1721572850279,2.8436,3516.7,3515.6,12.58475]
[1721572850485,0.29382185,3516.6,3515.6,12.58475]
[1721572850668,2.84365,3516.6,3515.6,9.7403]
[1721572851182,2.84365,3516.6,3515.6,12.58476]
[1721572851638,2.84356,3516.8,3515.6,12.58476]
[1721572851848,0.0946066,3516.7,3515.7,2.84437]
[1721572852151,0.0946066,3516.7,3515.6,12.58476]
[1721572852490,2.84349,3516.8,3515.7,4.687307]
[1721572852651,0.09458153,3516.6,3515.7,4.687307]
[1721572852989,2.84349,3516.8,3515.7,4.687307]
[1721572853346,2.93823566,3516.7,3515.7,1.842937]
[1721572853743,2.84362,3516.7,3515.7,1.842937]
[1721572854486,3.412323,3516.7,3515.7,1.842937]
[1721572854682,3.412323,3516.7,3515.6,12.58476]
[1721572854902,3.412323,3516.7,3515.6,9.7403]
[1721572854903,1.774203,3516.7,3515.6,9.7403]
[1721572855182,2.84383,3516.4,3515.6,9.7403]
[1721572855557,4.04915,3516.7,3515.6,9.7403]
[1721572855558,2.93843775,3516.3,3515.6,9.7403]
[1721572855756,2.84393,3516.3,3515.6,9.7403]
[1721572855996,0.09441394,3516.2,3515.6,9.7403]
[1721572856484,2.84374,3516.5,3515.6,9.7403]
[1721572856685,0.689282,3516.4,3515.6,9.7403]
[1721572856889,0.78367106,3516.4,3515.6,9.7403]
[1721572857074,3.533112,3516.4,3515.6,9.7403]
[1721572857409,0.689282,3516.4,3515.6,12.58474]
[1721572857622,2.84339,3517.0,3515.9,2.84421]
[1721572857832,2.84319,3517.2,3516.2,2.3166]
[1721572858120,0.09127188,3517.1,3516.8,2.3166]
[1721572858284,0.46711515,3517.7,3516.8,2.3166]
[1721572858679,0.09130464,3517.6,3516.8,2.3166]
[1721572859308,2.84293,3517.5,3516.8,2.3166]
[1721572859497,2.93424179,3517.5,3516.8,2.3166]
[1721572859807,0.62441269,3517.4,3516.8,2.3166]
[1721572860190,0.09129414,3517.3,3516.8,2.3166]
[1721572860912,0.09137829,3517.2,3516.8,2.3166]
[1721572861213,2.84278,3517.7,3516.8,2.3166]
[1721572861581,0.09141358,3517.6,3516.9,2.84339]
[1721572861805,0.09141358,3517.6,3516.9,3.643753]
[1721572862009,3.13936449,3517.9,3516.9,3.643753]
[1721572862010,0.29672449,3517.9,3517.4,2.3166]
[1721572862213,0.09141165,3517.5,3517.4,5.1596]
[1721572862418,4.04743,3518.8,3517.5,2.84291]
[1721572862638,4.04743,3518.8,3517.4,2.3166]
[1721572862639,3.33531953,3518.7,3517.6,2.84283]
[1721572862819,0.5848973,3518.7,3517.8,2.84266]
[1721572862975,0.09152777,3518.7,3518.0,2.3166]
[1721572863329,3.13916536,3519.1,3518.0,2.3166]
[1721572863330,2.84166,3519.1,3518.0,2.3166]
[1721572863475,0.09158866,3518.6,3518.0,5.15912]
[1721572863675,2.38718707,3519.8,3518.4,2.84218]
[1721572863676,2.84137,3519.5,3518.4,2.84218]
[1721572864119,1.0282653,3519.9,3518.4,2.3166]
[1721572864120,0.09162398,3519.4,3518.4,2.3166]
[1721572864319,2.98302,3519.9,3518.5,0.05684132]
[1721572864521,0.09190088,3519.3,3518.7,2.84192]
[1721572864815,2.98302,3519.9,3518.7,2.84192]
[1721572864816,0.142,3519.9,3518.7,2.84192]
[1721572864984,0.142,3519.9,3518.8,2.84187]
[1721572865190,0.0920135,3519.8,3518.8,2.82637]
[1721572865388,0.0920135,3519.8,3518.9,2.3166]
[1721572865828,0.142,3519.9,3518.9,2.3166]
[1721572865829,2.84131,3519.5,3518.9,2.3166]
[1721572866119,2.84147,3519.3,3518.3,2.3166]
[1721572866325,0.37617782,3519.4,3518.3,2.3166]
[1721572866326,0.09204682,3519.4,3518.3,2.3166]
[1721572866630,2.84123,3519.6,3518.3,2.3166]
[1721572866631,0.09206126,3519.2,3518.3,2.3166]
[1721572866776,2.84131,3519.5,3518.3,2.3166]
[1721572866982,0.09205244,3519.1,3518.3,2.3166]
[1721572867285,0.284131,3519.4,3518.3,2.3166]
[1721572867485,2.84123,3519.6,3518.3,2.3166]
[1721572867686,2.93356344,3519.3,3518.3,2.3166]
[1721572867876,2.8415,3519.3,3518.3,2.3166]
[1721572868076,0.09205462,3519.2,3518.3,2.3166]
[1721572868919,2.84172,3519.0,3518.3,2.3166]
[1721572869115,0.29337746,3518.9,3518.3,2.3166]
[1721572869323,0.38527133,3518.9,3518.3,2.3166]
[1721572869526,2.84191,3518.8,3518.3,2.3166]
[1721572869696,0.38527133,3518.9,3518.1,7.28]
[1721572869697,2.93371387,3518.9,3518.1,7.28]
[1721572869896,0.09187514,3518.7,3518.1,7.28]
[1721572870126,0.09185432,3518.8,3517.8,2.4206]
[1721572870293,2.84164,3519.1,3517.8,2.4206]
[1721572870594,0.09181784,3518.7,3517.8,2.4206]
[1721572870809,2.8418,3518.9,3517.8,2.4206]
[1721572871132,0.09182444,3518.8,3517.8,2.4206]
[1721572872519,2.93369444,3518.8,3517.8,2.4206]
[1721572872697,0.09182444,3518.8,3517.8,2.4206]
[1721572872891,0.38517788,3518.8,3517.8,2.4206]
[1721572873102,0.09182444,3518.8,3517.8,5.26321]
[1721572873300,0.09182444,3518.8,3518.2,2.4206]
[1721572873493,3.0,3519.3,3518.2,2.4206]
[1721572873995,0.09181651,3519.2,3518.2,2.4206]
[1721572874196,0.09181651,3519.2,3518.3,2.4206]
[1721572874532,0.09179848,3519.1,3518.3,3.246903]
[1721572874819,0.09179848,3519.1,3518.3,2.4206]
[1721572875019,2.84161,3519.2,3518.3,2.4206]
[1721572875201,0.0918162,3519.0,3518.3,2.4206]
[1721572875401,2.84161,3519.2,3518.3,2.4206]
[1721572875601,0.5683,3519.1,3518.3,2.4206]
[1721572876009,0.0918162,3519.0,3518.3,2.4206]
[1721572876214,2.84139,3519.4,3518.3,2.4206]
[1721572876417,0.09180739,3518.9,3518.3,2.4206]
[1721572876590,2.8415,3519.3,3518.3,2.4206]
[1721572877143,2.93339383,3519.2,3518.3,2.4206]
[1721572877424,2.84165,3519.1,3518.3,2.4206]
[1721572877587,2.84175,3519.0,3518.3,2.4206]
[1721572877791,2.93362081,3519.0,3518.3,2.4206]
[1721572878235,2.84188,3518.8,3518.3,2.4206]
[1721572878437,0.29337508,3518.7,3518.3,2.4206]
[1721572878728,0.38524267,3518.7,3518.3,2.4206]
[1721572879608,3.22722267,3518.7,3518.3,2.4206]
[1721572879830,0.38524267,3518.7,3518.3,2.4206]
[1721572881429,3.22720267,3518.7,3518.3,2.4206]
[1721572881631,0.32272027,3518.6,3518.3,2.4206]
[1721572882145,0.09182212,3518.5,3518.3,2.4206]
[1721572882840,2.8418,3518.9,3518.3,2.4206]
[1721572883336,0.09183109,3518.8,3518.3,2.4206]
[1721572883567,0.29336311,3518.7,3517.9,2.276]
[1721572883709,0.09183002,3518.7,3517.9,2.276]
[1721572884736,3.13832761,3519.2,3517.9,2.276]
[1721572885021,2.8415,3519.3,3518.2,2.276]
[1721572885256,0.09175954,3519.1,3518.2,2.276]
[1721572885433,2.84155,3519.2,3518.2,2.276]
[1721572885434,2.93331836,3519.2,3518.2,2.276]
[1721572885633,3.5107882,3519.2,3518.2,2.276]
[1721572886967,2.84164,3519.1,3518.2,2.276]
[1721572887120,2.93339511,3519.1,3518.2,2.276]